fUST/lending_fUST_20260625
["ID","MTS","AMOUNT","RATE_DAILY","PERIOD"]
[426402509,1782351042000,-658.1706271,0.00035515,2]
[426402531,1782351042000,-603.22590027,0.00035516,2]
[426402539,1782351042000,-544.69668403,0.00035518,2]
[426402537,1782351042000,-611.33896881,0.00035518,2]
[426402533,1782351042000,-452.09726703,0.00035516,2]
[426402549,1782351042000,-482.47873737,0.00035518,2]
[426402535,1782351042000,-492.75179231,0.00035518,2]
[426402547,1782351042000,-254.59329396,0.00035518,2]
[426402545,1782351042000,-451.49844099,0.00035518,2]
[426402543,1782351042000,-839.65278396,0.00035518,2]
[426402551,1782351042000,-375.23856626,0.00035518,2]
[426402553,1782351042000,-499.7017595,0.0003552,2]
[426402555,1782351042000,-348.15756364,0.0003552,2]
[426402559,1782351042000,-274.88908812,0.00035522,2]
[426402557,1782351042000,-313.56506364,0.0003552,2]
[426402561,1782351042000,-153.35949936,0.00035522,2]
[426402565,1782351042000,-534.09858207,0.00035524,2]
[426402563,1782351042000,-633.21798542,0.00035524,2]
[426402445,1782351042000,-160.0,0.00035214,5]
[426402518,1782351042000,-452.76895276,0.00035515,2]
[426402522,1782351042000,-467.29716816,0.00035515,2]
[426402541,1782351042000,-559.22119776,0.00035518,2]
[426402486,1782351042000,-454.92950669,0.00035511,2]
[426402514,1782351042000,-455.40213632,0.00035515,2]
[426402453,1782351042000,-781.23811012,0.00035505,2]
[426402455,1782351042000,-250.69341292,0.00035505,2]
[426402457,1782351042000,-249.20714288,0.00035505,2]
[426402459,1782351042000,-360.02535272,0.00035505,2]
[426402472,1782351042000,-211.19356039,0.00035505,2]
[426402464,1782351042000,-396.5115513,0.00035505,2]
[426402468,1782351042000,-205.41591133,0.00035505,2]
[426402462,1782351042000,-442.53079043,0.00035505,2]
[426402466,1782351042000,-439.82621608,0.00035505,2]
[426402470,1782351042000,-443.18805705,0.00035505,2]
[426402474,1782351042000,-488.13045189,0.00035505,2]
[426402476,1782351042000,-178.70823383,0.00035511,2]
[426402478,1782351042000,-397.98859565,0.00035511,2]
[426402449,1782351042000,-240.0,0.0003545,2]
[426402495,1782351042000,-205.07490632,0.00035515,2]
[426402480,1782351042000,-467.21995816,0.00035511,2]
[426402505,1782351042000,-515.52668825,0.00035515,2]
[426402491,1782351042000,-926.44600102,0.00035515,2]
[426402482,1782351042000,-496.36912839,0.00035511,2]
[426402499,1782351042000,-348.64238379,0.00035515,2]
[426402503,1782351042000,-455.49050497,0.00035515,2]
[426402497,1782351042000,-403.96071598,0.00035515,2]
[426402488,1782351042000,-252.37008457,0.00035515,2]
[426402490,1782351042000,-470.1218765,0.00035515,2]
[426402501,1782351042000,-473.46492706,0.00035515,2]
[426402484,1782351042000,-472.08949762,0.00035511,2]
[426402493,1782351042000,-450.23394707,0.00035515,2]
[426402661,1782351043000,-687.36891766,0.00035952,2]
[426402646,1782351043000,-228.6177817,0.00035951,2]
[426402644,1782351043000,-772.03833418,0.00035951,2]
[426402648,1782351043000,-675.3509206,0.00035951,2]
[426402659,1782351043000,-710.19739059,0.00035951,2]
[426402621,1782351043000,-596.98289347,0.00035948,2]
[426402657,1782351043000,-522.96357568,0.00035951,2]
[426402655,1782351043000,-605.94107398,0.00035951,2]
[426402653,1782351043000,-270.49644628,0.00035951,2]
[426402640,1782351043000,-749.55263925,0.00035948,2]
[426402663,1782351043000,-629.45266349,0.00035952,2]
[426402637,1782351043000,-602.79635604,0.00035948,2]
[426402642,1782351043000,-504.74016913,0.00035951,2]
[426402651,1782351043000,-410.14981263,0.00035951,2]
[426402683,1782351043000,-1119.53704528,0.00035955,2]
[426402679,1782351043000,-726.26224537,0.00035955,2]
[426402677,1782351043000,-815.11862508,0.00035955,2]
[426402667,1782351043000,-376.1850561,0.00035952,2]
[426402681,1782351043000,-745.62826368,0.00035955,2]
[426402685,1782351043000,-509.18658792,0.00035955,2]
[426402688,1782351043000,-562.85784939,0.00035955,2]
[426402669,1782351043000,-606.67700307,0.00035952,2]
[426402671,1782351043000,-511.5337172,0.00035952,2]
[426402675,1782351043000,-657.00238974,0.00035955,2]
[426402673,1782351043000,-769.84606542,0.00035953,2]
[426402687,1782351043000,-723.71810606,0.00035955,2]
[426402692,1782351043000,-156.78253182,0.00035956,2]
[426402691,1782351043000,-549.77817625,0.00035956,2]
[426402665,1782351043000,-540.34000709,0.00035952,2]
[426402635,1782351043000,-661.82550451,0.00035948,2]
[426402567,1782351043000,-487.05448243,0.00035524,2]
[426402618,1782351043000,-357.41646767,0.00035948,2]
[426402694,1782351043000,-246.1813071,0.00035958,2]
[426402570,1782351043000,-160.0,0.00035616,38]
[426402573,1782351043000,-151.91779274,0.00035783,20]
[426402577,1782351043000,-1000.0,0.00035793,2]
[426402579,1782351043000,-1000.0,0.00035793,2]
[426402575,1782351043000,-1000.0,0.00035793,2]
[426402581,1782351043000,-650.0,0.00035793,2]
[426402583,1782351043000,-490.0,0.00035793,2]
[426402584,1782351043000,-270.0,0.00035793,2]
[426402586,1782351043000,-152.52748521,0.00035883,2]
[426402604,1782351043000,-410.83182265,0.00035941,2]
[426402596,1782351043000,-184.61163428,0.00035941,2]
[426402588,1782351043000,-548.19573941,0.00035883,2]
[426402639,1782351043000,-606.57267559,0.00035948,2]
[426402592,1782351043000,-539.60791245,0.00035941,2]
[426402590,1782351043000,-394.82350544,0.00035883,2]
[426402598,1782351043000,-150.17436058,0.00035941,2]
[426402606,1782351043000,-221.59402852,0.00035941,2]
[426402602,1782351043000,-594.76732696,0.00035941,2]
[426402600,1782351043000,-540.03802908,0.00035941,2]
[426402610,1782351043000,-732.19567783,0.00035941,2]
[426402608,1782351043000,-422.38712079,0.00035941,2]
[426402612,1782351043000,-663.79618565,0.00035941,2]
[426402623,1782351043000,-160.89197364,0.00035948,2]
[426402626,1782351043000,-683.23575746,0.00035948,2]
[426402629,1782351043000,-226.77098659,0.00035948,2]
[426402633,1782351043000,-622.95994421,0.00035948,2]
[426402615,1782351043000,-659.73932413,0.00035941,2]
[426402594,1782351043000,-501.38682585,0.00035941,2]
[426402696,1782351043000,-431.70703151,0.00035958,2]
[426402702,1782351043000,-712.13144276,0.0003596,2]
[426402704,1782351043000,-649.40597658,0.0003596,2]
[426402782,1782351043000,-309.426012,0.00038066,120]
[426402780,1782351043000,-1959.18982924,0.00038028,2]
[426402776,1782351043000,-308.81533367,0.00038025,2]
[426402778,1782351043000,-1426.45759388,0.00038028,2]
[426402784,1782351043000,-309.426013,0.00038066,21]
[426402770,1782351043000,-151.91779274,0.00037512,23]
[426402774,1782351043000,-300.35494551,0.00038,120]
[426402772,1782351043000,-200.0,0.00037664,46]
[426402768,1782351043000,-200.0,0.00037185,43]
[426402786,1782351043000,-200.0,0.00038123,49]
[426402789,1782351043000,-151.78,0.000388,120]
[426402788,1782351043000,-151.78,0.000383,120]
[426402791,1782351043000,-151.0,0.000388,13]
[426402766,1782351043000,-1679.30556792,0.00037046,2]
[426402793,1782351043000,-5880.530298,0.00038842,2]
[426402804,1782351043000,-154.40766684,0.00039498,2]
[426402810,1782351043000,-150.0,0.00039735,2]
[426402808,1782351043000,-2239.07409056,0.00039502,2]
[426402801,1782351043000,-151.78,0.000393,120]
[426402795,1782351043000,-1201.86678036,0.00039,120]
[426402799,1782351043000,-20988.4524093,0.00039188,2]
[426402807,1782351043000,-1630.23725015,0.00039502,2]
[426402797,1782351043000,-151.0,0.00039,10]
[426402812,1782351043000,-150.0,0.00039735,2]
[426402814,1782351043000,-150.0,0.00039735,2]
[426402816,1782351043000,-151.78,0.000398,120]
[426402818,1782351043000,-745.0,0.00039965,2]
[426402820,1782351043000,-445.0,0.00039965,2]
[426402803,1782351043000,-151.91779274,0.00039471,25]
[426402764,1782351043000,-1222.67793761,0.00037046,2]
[426402698,1782351043000,-306.71899873,0.00035958,2]
[426402753,1782351043000,-600.0,0.00036974,2]
[426402700,1782351043000,-504.86030042,0.00035958,2]
[426402714,1782351043000,-1000.0,0.00036292,15]
[426402822,1782351043000,-1201.86678036,0.000402,120]
[426402708,1782351043000,-804.96023714,0.00035984,2]
[426402716,1782351043000,-758.21584448,0.00036384,2]
[426402710,1782351043000,-200.0,0.00036162,40]
[426402706,1782351043000,-750.91452445,0.00035984,2]
[426402712,1782351043000,-356.90035412,0.0003627,2]
[426402718,1782351043000,-617.63066735,0.00036388,2]
[426402724,1782351043000,-859.21114708,0.00036388,2]
[426402729,1782351043000,-1018.89828135,0.00036391,2]
[426402726,1782351043000,-188.09252805,0.00036388,2]
[426402728,1782351043000,-962.30758177,0.00036389,2]
[426402737,1782351043000,-151.0,0.000366,11]
[426402762,1782351043000,-463.22300051,0.00037043,2]
[426402733,1782351043000,-1399.4213066,0.00036391,2]
[426402758,1782351043000,-151.0,0.00037,12]
[426402754,1782351043000,-370.0,0.00036974,2]
[426402756,1782351043000,-180.0,0.00036974,2]
[426402731,1782351043000,-907.82780671,0.00036391,2]
[426402749,1782351043000,-445.0,0.00036965,2]
[426402760,1782351043000,-150.0,0.0003701,2]
[426402751,1782351043000,-850.0,0.00036974,2]
[426402747,1782351043000,-745.0,0.00036965,2]
[426402743,1782351043000,-150.0,0.00036735,2]
[426402745,1782351043000,-150.0,0.00036735,2]
[426402735,1782351043000,-811.75747072,0.00036397,2]
[426402739,1782351043000,-200.0,0.00036685,41]
[426402741,1782351043000,-156.724,0.00036735,2]
[426402906,1782351044000,-500.0,0.00040273,30]
[426402902,1782351044000,-500.0,0.00040273,30]
[426402904,1782351044000,-500.0,0.00040273,30]
[426402898,1782351044000,-500.0,0.00040273,30]
[426402900,1782351044000,-500.0,0.00040273,30]
[426402882,1782351044000,-500.0,0.00040273,30]
[426402894,1782351044000,-500.0,0.00040273,30]
[426402892,1782351044000,-500.0,0.00040273,30]
[426402890,1782351044000,-500.0,0.00040273,30]
[426402884,1782351044000,-500.0,0.00040273,30]
[426402888,1782351044000,-500.0,0.00040273,30]
[426402914,1782351044000,-500.0,0.00040273,30]
[426402896,1782351044000,-500.0,0.00040273,30]
[426402908,1782351044000,-500.0,0.00040273,30]
[426402938,1782351044000,-1000.0,0.00040273,2]
[426402910,1782351044000,-496.81148544,0.00040273,30]
[426402916,1782351044000,-500.0,0.00040273,30]
[426402931,1782351044000,-1000.0,0.00040273,2]
[426402929,1782351044000,-1000.0,0.00040273,2]
[426402933,1782351044000,-1000.0,0.00040273,2]
[426402936,1782351044000,-1000.0,0.00040273,2]
[426402918,1782351044000,-500.0,0.00040273,30]
[426402920,1782351044000,-500.0,0.00040273,30]
[426402925,1782351044000,-1000.0,0.00040273,2]
[426402927,1782351044000,-1000.0,0.00040273,2]
[426402924,1782351044000,-1000.0,0.00040273,2]
[426402922,1782351044000,-479.84508475,0.00040273,30]
[426402886,1782351044000,-500.0,0.00040273,30]
[426402912,1782351044000,-500.0,0.00040273,30]
[426402880,1782351044000,-500.0,0.00040273,30]
[426402861,1782351044000,-500.0,0.00040273,2]
[426402873,1782351044000,-500.0,0.00040273,6]
[426402831,1782351044000,-500.0,0.00040273,30]
[426402825,1782351044000,-500.0,0.00040273,30]
[426402835,1782351044000,-500.0,0.00040273,30]
[426402823,1782351044000,-500.0,0.00040273,30]
[426402829,1782351044000,-500.0,0.00040273,30]
[426402836,1782351044000,-500.0,0.00040273,30]
[426402833,1782351044000,-500.0,0.00040273,30]
[426402827,1782351044000,-500.0,0.00040273,30]
[426402840,1782351044000,-500.0,0.00040273,30]
[426402838,1782351044000,-500.0,0.00040273,30]
[426402853,1782351044000,-500.0,0.00040273,2]
[426402841,1782351044000,-520.27440202,0.00040273,30]
[426402849,1782351044000,-500.0,0.00040273,30]
[426402878,1782351044000,-500.0,0.00040273,30]
[426402843,1782351044000,-500.0,0.00040273,30]
[426402941,1782351044000,-1000.0,0.00040273,2]
[426402845,1782351044000,-500.0,0.00040273,30]
[426402855,1782351044000,-500.0,0.00040273,2]
[426402847,1782351044000,-500.0,0.00040273,2]
[426402857,1782351044000,-500.0,0.00040273,2]
[426402851,1782351044000,-177.83551805,0.00040273,30]
[426402863,1782351044000,-500.0,0.00040273,2]
[426402865,1782351044000,-500.0,0.00040273,2]
[426402867,1782351044000,-250.0,0.00040273,2]
[426402871,1782351044000,-500.0,0.00040273,6]
[426402875,1782351044000,-500.0,0.00040273,30]
[426402876,1782351044000,-500.0,0.00040273,30]
[426402869,1782351044000,-500.0,0.00040273,6]
[426402859,1782351044000,-500.0,0.00040273,2]
[426402940,1782351044000,-1000.0,0.00040273,2]
[426402935,1782351044000,-1000.0,0.00040273,2]
[426402945,1782351044000,-1000.0,0.00040273,2]
[426403012,1782351044000,-1000.0,0.00040273,2]
[426403014,1782351044000,-1000.0,0.00040273,2]
[426403018,1782351044000,-1000.0,0.00040273,2]
[426403020,1782351044000,-1000.0,0.00040273,2]
[426403022,1782351044000,-1000.0,0.00040273,2]
[426403024,1782351044000,-1000.0,0.00040273,2]
[426403016,1782351044000,-1000.0,0.00040273,2]
[426403026,1782351044000,-1000.0,0.00040273,2]
[426403031,1782351044000,-1000.0,0.00040273,2]
[426403035,1782351044000,-1000.0,0.00040273,2]
[426403028,1782351044000,-1000.0,0.00040273,2]
[426403030,1782351044000,-1000.0,0.00040273,2]
[426403033,1782351044000,-1000.0,0.00040273,2]
[426403037,1782351044000,-1000.0,0.00040273,2]
[426403039,1782351044000,-1000.0,0.00040273,2]
[426403042,1782351044000,-1000.0,0.00040273,2]
[426403060,1782351044000,-332.62371998,0.00040273,30]
[426403041,1782351044000,-1000.0,0.00040273,2]
[426403051,1782351044000,-500.0,0.00040273,30]
[426403044,1782351044000,-1000.0,0.00040273,2]
[426403046,1782351044000,-1000.0,0.00040273,2]
[426402943,1782351044000,-1000.0,0.00040273,2]
[426403049,1782351044000,-500.0,0.00040273,30]
[426403059,1782351044000,-500.0,0.00040273,30]
[426403064,1782351044000,-151.78,0.000403,120]
[426403053,1782351044000,-500.0,0.00040273,30]
[426403057,1782351044000,-500.0,0.00040273,30]
[426403062,1782351044000,-502.39339515,0.00040273,30]
[426403055,1782351044000,-500.0,0.00040273,30]
[426403009,1782351044000,-1000.0,0.00040273,2]
[426403007,1782351044000,-1000.0,0.00040273,2]
[426403048,1782351044000,-1020.61607741,0.00040273,2]
[426403011,1782351044000,-1000.0,0.00040273,2]
[426402951,1782351044000,-1000.0,0.00040273,2]
[426402947,1782351044000,-1000.0,0.00040273,2]
[426402953,1782351044000,-1000.0,0.00040273,2]
[426402962,1782351044000,-1000.0,0.00040273,2]
[426402959,1782351044000,-1000.0,0.00040273,2]
[426402970,1782351044000,-1000.0,0.00040273,2]
[426402964,1782351044000,-1000.0,0.00040273,2]
[426402949,1782351044000,-1000.0,0.00040273,2]
[426402973,1782351044000,-1000.0,0.00040273,2]
[426402983,1782351044000,-1000.0,0.00040273,2]
[426402966,1782351044000,-1000.0,0.00040273,2]
[426402981,1782351044000,-1000.0,0.00040273,2]
[426402971,1782351044000,-1000.0,0.00040273,2]
[426402977,1782351044000,-1000.0,0.00040273,2]
[426402979,1782351044000,-1000.0,0.00040273,2]
[426403001,1782351044000,-1000.0,0.00040273,2]
[426402984,1782351044000,-1000.0,0.00040273,2]
[426402992,1782351044000,-1000.0,0.00040273,2]
[426402994,1782351044000,-1000.0,0.00040273,2]
[426403003,1782351044000,-1000.0,0.00040273,2]
[426402999,1782351044000,-1000.0,0.00040273,2]
[426402996,1782351044000,-1000.0,0.00040273,2]
[426402990,1782351044000,-1000.0,0.00040273,2]
[426402997,1782351044000,-1000.0,0.00040273,2]
[426402968,1782351044000,-1000.0,0.00040273,2]
[426402986,1782351044000,-1000.0,0.00040273,2]
[426403005,1782351044000,-1000.0,0.00040273,2]
[426402988,1782351044000,-1000.0,0.00040273,2]
[426402975,1782351044000,-1000.0,0.00040273,2]
[426403073,1782351045000,-43663.58872547,0.00040444,30]
[426403066,1782351045000,-356.90035412,0.00040393,2]
[426403068,1782351045000,-287588.24752776,0.00040444,30]
[426403157,1782351099000,1031.32384344,0.00029135,120]
[426403158,1782351113000,540.0,0.00029135,30]
[426403159,1782351129000,-513.96664069,0.0001959,2]
[426403162,1782351146000,-192.22784363,0.00019999,2]
[426403166,1782351163000,-968.80237387,0.00019999,2]
[426403168,1782351208000,192.40760321,0.0002,120]
[426403170,1782351260000,261.0,0.00030136,30]
[426403171,1782351312000,1773.25774531,0.00030137,30]
[426403174,1782351455000,250.0,0.0003,120]
[426403175,1782351473000,160.0,0.00029133,30]
[426403176,1782351497000,160.0,0.00029133,30]
[426403188,1782352030000,-421.00974531,0.00018782,3]
[426403189,1782352039000,-533.77010105,0.00018782,3]
[426403191,1782352161000,-357.43632719,0.00018972,2]
[426403190,1782352161000,-1879.62248985,0.00018782,3]
[426403357,1782352238000,-357.51331419,0.00018972,2]
[426403422,1782352239000,-224.12309061,0.00035546,2]
[426403415,1782352239000,-324.87766085,0.00034892,2]
[426403416,1782352239000,-171.8992124,0.00035466,2]
[426403411,1782352239000,-155.46146321,0.0003489,2]
[426403413,1782352239000,-303.61327519,0.00034892,2]
[426403430,1782352239000,-219.23308246,0.00035546,2]
[426403424,1782352239000,-226.59747715,0.00035546,2]
[426403409,1782352239000,-162.43883042,0.00033908,2]
[426403435,1782352239000,-310.92292642,0.00035546,2]
[426403420,1782352239000,-200.93619568,0.00035546,2]
[426403426,1782352239000,-276.07585692,0.00035546,2]
[426403428,1782352239000,-207.86914726,0.00035546,2]
[426403407,1782352239000,-151.80663759,0.00033908,2]
[426403405,1782352239000,-192.0384911,0.00033511,7]
[426403401,1782352239000,-187.313,0.00033251,2]
[426403397,1782352239000,-1843.0,0.00033251,2]
[426403403,1782352239000,-221.9,0.00033251,2]
[426403392,1782352239000,-385.897339,0.00031942,2]
[426403395,1782352239000,-1421.463,0.00033251,2]
[426403382,1782352239000,-240.0,0.00026575,2]
[426403399,1782352239000,-189.0,0.00033251,2]
[426403389,1782352239000,-2777.7716133,0.00031658,120]
[426403386,1782352239000,-390.0,0.00028914,2]
[426403387,1782352239000,-160.0,0.00029288,2]
[426403384,1782352239000,-203.12,0.00027118,2]
[426403376,1782352239000,-3565.93035862,0.00018972,2]
[426403380,1782352239000,-171.0,0.00021862,2]
[426403378,1782352239000,-217.40214839,0.000195,2]
[426403393,1782352239000,-163.9981816,0.00032951,2]
[426403432,1782352239000,-282.37615501,0.00035546,2]
[426403418,1782352239000,-250.0,0.00035515,2]
[426403438,1782352239000,-511.9508847,0.00035546,30]
[426403433,1782352239000,-174.2442962,0.00035546,2]
[426403496,1782352239000,-1968.1218381,0.00036151,2]
[426403499,1782352239000,-2546.56564369,0.00036151,2]
[426403490,1782352239000,-453.35591123,0.00035998,2]
[426403487,1782352239000,-649.7553217,0.00035984,2]
[426403492,1782352239000,-466.38438964,0.00035998,2]
[426403488,1782352239000,-279.90643579,0.00035998,2]
[426403485,1782352239000,-565.56175372,0.00035984,2]
[426403483,1782352239000,-405.80548663,0.00035984,2]
[426403481,1782352239000,-607.22655038,0.00035984,2]
[426403479,1782352239000,-548.55855371,0.00035984,2]
[426403477,1782352239000,-332.95639799,0.00035984,2]
[426403475,1782352239000,-348.48859239,0.00035983,2]
[426403473,1782352239000,-209.31552497,0.00035983,2]
[426403467,1782352239000,-415.73829453,0.00035983,2]
[426403494,1782352239000,-255.38050753,0.00036151,2]
[426403471,1782352239000,-564.75231002,0.00035983,2]
[426403441,1782352239000,-274.27927686,0.00035547,2]
[426403451,1782352239000,-226.67795562,0.00035561,2]
[426403439,1782352239000,-166.478199,0.00035547,2]
[426403443,1782352239000,-455.41991278,0.00035547,2]
[426403449,1782352239000,-487.31649127,0.00035547,2]
[426403453,1782352239000,-500.0,0.00035982,15]
[426403447,1782352239000,-282.78087686,0.00035547,2]
[426403455,1782352239000,-626.27911659,0.00035982,15]
[426403457,1782352239000,-401.87239137,0.00035983,2]
[426403459,1782352239000,-448.24618122,0.00035983,2]
[426403469,1782352239000,-438.46616492,0.00035983,2]
[426403463,1782352239000,-453.19495429,0.00035983,2]
[426403445,1782352239000,-202.90274332,0.00035547,2]
[426403465,1782352239000,-552.15171384,0.00035983,2]
[426404040,1782352243000,-1420.0,0.00036251,2]
[426404036,1782352243000,-1779.32204679,0.00036151,2]
[426404038,1782352243000,-1936.44953936,0.00036151,2]
[426404043,1782352243000,-478.86309913,0.00036251,2]
[426404453,1782352247000,-147.53292505,0.000291,2]
[426404451,1782352247000,-1002.554736,0.000286,2]
[426404489,1782352247000,-462.0,0.000291,2]
[426405456,1782352308000,417.15472785,0.00029149,30]
[426405459,1782352392000,202.0048887,0.000275,30]
[426405460,1782352398000,202.00488869,0.000275,30]
[426405472,1782352653000,2113.63151111,7.6e-05,2]
[426405474,1782352731000,161.60391095,0.000275,30]
[426405478,1782352840000,-344.24392328,0.0001188,3]
[426405479,1782352841000,-151.91244951,0.0001188,3]
[426405480,1782352842000,-346.45016202,0.0001188,3]
[426405490,1782352853000,-4157.39346519,0.0001188,3]
[426405491,1782352870000,-196.43401192,0.00012,2]
[426405493,1782352887000,-1674.39622743,0.000125,2]
[426405494,1782352903000,-469.84163804,0.00013,2]
[426405495,1782352920000,-784.539058,0.00016037,2]
[426405496,1782352937000,-250.51265753,0.00016416,2]
[426405497,1782352954000,-4019.0375705,0.00016829,2]
[426405530,1782353321000,160.0,0.00029152,30]
[426405531,1782353352000,-320.0,0.00017,2]
[426405532,1782353352000,-213.35375169,0.00017954,2]
[426405533,1782353352000,-223.3849551,0.00018318,2]
[426405534,1782353352000,-313.61956019,0.00019899,2]
[426405535,1782353352000,-3619.70574843,0.00019899,2]
[426405537,1782353373000,-35262.85949263,0.000199,2]
[426405536,1782353373000,-3805.40388008,0.00019899,2]
[426405582,1782353431000,-4176.35768067,0.000199,2]
[426405575,1782353431000,-20698.61553683,0.000199,2]
[426405681,1782353438000,-26593.9081685,0.000199,2]
[426406210,1782353555000,402.43331731,0.0001,2]
[426406211,1782353691000,161.0,0.00029151,120]
[426406212,1782353710000,373.5827056,0.00029151,120]
[426406220,1782354127000,417.15472785,0.00029175,30]
[426406225,1782354439000,-337.07334243,0.0001498,3]
[426406224,1782354439000,-323.61660268,0.0001483,3]
[426406223,1782354439000,-950.64864385,0.00014682,3]
[426406228,1782354443000,-11213.68411571,0.00016815,2]
[426406226,1782354443000,-4662.92665757,0.0001498,3]
[426406227,1782354443000,-2974.0,0.00016398,2]
[426406229,1782354445000,-2580.70365076,0.00016815,2]
[426406231,1782354533000,161.90769678,0.00029175,120]
[426406239,1782354553000,-3251.69920759,0.00017743,2]
[426406237,1782354553000,-264.7123066,0.0001746,4]
[426406236,1782354553000,-211.2025605,0.000169,2]
[426406238,1782354553000,-5797.7144443,0.00017477,2]
[426406235,1782354553000,-766.560778,0.00016886,2]
[426406233,1782354553000,-329.71101213,0.00016815,2]
[426406234,1782354553000,-157.24192618,0.00016846,2]
[426406232,1782354553000,-1731.06842094,0.00016646,3]
[426406277,1782354631000,-316.02235981,0.00017743,2]
[426406279,1782354631000,-195.23813859,0.00018049,2]
[426406299,1782354632000,-3209.99999995,0.00019598,2]
[426406297,1782354632000,-3330.38110018,0.00019598,2]
[426406291,1782354632000,-172.3214525,0.00018193,2]
[426406295,1782354632000,-458.343,0.00018716,2]
[426406293,1782354632000,-176.26561844,0.00018685,7]
[426406287,1782354632000,-305.41094167,0.00018049,2]
[426406289,1782354632000,-1000.0,0.0001805,2]
[426406451,1782354638000,-1010.82976389,0.00019698,2]
[426406446,1782354638000,-1010.82976389,0.00019698,2]
[426406438,1782354638000,-382.18860383,0.00019698,2]
[426406444,1782354638000,-1010.82976389,0.00019698,2]
[426406440,1782354638000,-1010.82976389,0.00019698,2]
[426406442,1782354638000,-1010.82976389,0.00019698,2]
[426406436,1782354638000,-1010.82976389,0.00019698,2]
[426406434,1782354638000,-394.66842547,0.00019697,2]
[426406426,1782354638000,-500.0,0.00019697,2]
[426406431,1782354638000,-500.0,0.00019697,2]
[426406429,1782354638000,-455.17968957,0.00019697,2]
[426406453,1782354638000,-1010.82976389,0.00019698,2]
[426406419,1782354638000,-500.0,0.00019697,2]
[426406423,1782354638000,-500.0,0.00019697,2]
[426406421,1782354638000,-500.0,0.00019697,2]
[426406417,1782354638000,-250.89564812,0.0001968,2]
[426406415,1782354638000,-250.89564812,0.00019599,2]
[426406413,1782354638000,-375.15668826,0.00019598,2]
[426406432,1782354638000,-500.0,0.00019697,2]
[426406455,1782354638000,-1010.82976389,0.00019698,2]
[426406449,1782354638000,-1010.82976389,0.00019698,2]
[426406459,1782354638000,-1010.82976389,0.00019698,2]
[426406497,1782354638000,-564578.33046199,0.00019699,2]
[426406495,1782354638000,-1044.52408934,0.00019698,2]
[426406490,1782354638000,-1044.52408934,0.00019698,2]
[426406492,1782354638000,-1044.52408934,0.00019698,2]
[426406493,1782354638000,-1044.52408934,0.00019698,2]
[426406488,1782354638000,-1044.52408934,0.00019698,2]
[426406486,1782354638000,-1044.52408934,0.00019698,2]
[426406484,1782354638000,-1044.52408934,0.00019698,2]
[426406482,1782354638000,-1044.52408934,0.00019698,2]
[426406480,1782354638000,-1044.52408934,0.00019698,2]
[426406457,1782354638000,-1010.82976389,0.00019698,2]
[426406464,1782354638000,-1010.82976389,0.00019698,2]
[426406474,1782354638000,-1010.82976389,0.00019698,2]
[426406476,1782354638000,-1010.82976389,0.00019698,2]
[426406470,1782354638000,-1010.82976389,0.00019698,2]
[426406472,1782354638000,-1010.82976389,0.00019698,2]
[426406462,1782354638000,-1010.82976389,0.00019698,2]
[426406468,1782354638000,-1010.82976389,0.00019698,2]
[426406466,1782354638000,-1010.82976389,0.00019698,2]
[426406461,1782354638000,-1010.82976389,0.00019698,2]
[426406478,1782354638000,-1010.82976389,0.00019698,2]
[426406732,1782354640000,-286.74485008,0.00019699,2]
[426407290,1782354646000,-3846.94918418,0.00019699,2]
[426407297,1782354882000,1000.0,0.00029266,30]
[426407296,1782354882000,1000.0,0.00026605,30]
[426407298,1782354883000,244.0,0.00029266,30]
[426407300,1782354922000,1000.0,0.00026605,30]
[426407301,1782354923000,1000.0,0.00029266,30]
[426407302,1782354923000,244.0,0.00029266,30]
[426407303,1782354929000,181.0,0.00028886,120]
[426407304,1782354954000,1000.0,0.00026605,30]
[426407306,1782354955000,244.0,0.00029266,30]